fUSD/lending_fUSD_20260528
["ID","MTS","AMOUNT","RATE_DAILY","PERIOD"]
[423234061,1779966641000,-500.0,0.00019178,2]
[423234068,1779966641000,-500.0,0.00019178,2]
[423234081,1779966641000,-500.0,0.00019178,2]
[423234057,1779966641000,-500.0,0.00019178,2]
[423234039,1779966641000,-500.0,0.00019178,2]
[423234063,1779966641000,-500.0,0.00019178,2]
[423234038,1779966641000,-500.0,0.00019178,2]
[423234036,1779966641000,-500.0,0.00019178,2]
[423234040,1779966641000,-500.0,0.00019178,2]
[423234043,1779966641000,-500.0,0.00019178,2]
[423234054,1779966641000,-500.0,0.00019178,2]
[423234055,1779966641000,-500.0,0.00019178,2]
[423234044,1779966641000,-500.0,0.00019178,2]
[423234045,1779966641000,-500.0,0.00019178,2]
[423234042,1779966641000,-500.0,0.00019178,2]
[423234046,1779966641000,-500.0,0.00019178,2]
[423234053,1779966641000,-500.0,0.00019178,2]
[423234049,1779966641000,-500.0,0.00019178,2]
[423234065,1779966641000,-500.0,0.00019178,2]
[423234059,1779966641000,-500.0,0.00019178,2]
[423234058,1779966641000,-500.0,0.00019178,2]
[423234056,1779966641000,-500.0,0.00019178,2]
[423234060,1779966641000,-500.0,0.00019178,2]
[423234067,1779966641000,-500.0,0.00019178,2]
[423234048,1779966641000,-500.0,0.00019178,2]
[423234047,1779966641000,-500.0,0.00019178,2]
[423234052,1779966641000,-500.0,0.00019178,2]
[423234050,1779966641000,-500.0,0.00019178,2]
[423234051,1779966641000,-500.0,0.00019178,2]
[423234133,1779966642000,-151.0,0.00019178,2]
[423234134,1779966642000,-151.0,0.00019178,2]
[423234139,1779966642000,-151.0,0.00019178,2]
[423234128,1779966642000,-151.0,0.00019178,2]
[423234129,1779966642000,-151.0,0.00019178,2]
[423234122,1779966642000,-151.0,0.00019178,2]
[423234123,1779966642000,-151.0,0.00019178,2]
[423234121,1779966642000,-151.0,0.00019178,2]
[423234120,1779966642000,-151.0,0.00019178,2]
[423234126,1779966642000,-151.0,0.00019178,2]
[423234127,1779966642000,-151.0,0.00019178,2]
[423234125,1779966642000,-151.0,0.00019178,2]
[423234136,1779966642000,-151.0,0.00019178,2]
[423234147,1779966642000,-151.0,0.00019178,2]
[423234135,1779966642000,-151.0,0.00019178,2]
[423234148,1779966642000,-151.0,0.00019178,2]
[423234130,1779966642000,-151.0,0.00019178,2]
[423234137,1779966642000,-151.0,0.00019178,2]
[423234131,1779966642000,-151.0,0.00019178,2]
[423234138,1779966642000,-151.0,0.00019178,2]
[423234141,1779966642000,-151.0,0.00019178,2]
[423234140,1779966642000,-151.0,0.00019178,2]
[423234142,1779966642000,-151.0,0.00019178,2]
[423234151,1779966642000,-151.0,0.00019178,2]
[423234145,1779966642000,-151.0,0.00019178,2]
[423234124,1779966642000,-151.0,0.00019178,2]
[423234132,1779966642000,-151.0,0.00019178,2]
[423234116,1779966642000,-151.0,0.00019178,2]
[423234092,1779966642000,-151.0,0.00019178,2]
[423234119,1779966642000,-151.0,0.00019178,2]
[423234089,1779966642000,-164.65220892,0.00019178,2]
[423234090,1779966642000,-3000.0,0.00019178,2]
[423234091,1779966642000,-151.0,0.00019178,2]
[423234094,1779966642000,-151.0,0.00019178,2]
[423234095,1779966642000,-151.0,0.00019178,2]
[423234099,1779966642000,-151.0,0.00019178,2]
[423234093,1779966642000,-151.0,0.00019178,2]
[423234100,1779966642000,-151.0,0.00019178,2]
[423234096,1779966642000,-151.0,0.00019178,2]
[423234098,1779966642000,-151.0,0.00019178,2]
[423234097,1779966642000,-151.0,0.00019178,2]
[423234101,1779966642000,-151.0,0.00019178,2]
[423234102,1779966642000,-151.0,0.00019178,2]
[423234104,1779966642000,-151.0,0.00019178,2]
[423234103,1779966642000,-151.0,0.00019178,2]
[423234114,1779966642000,-151.0,0.00019178,2]
[423234105,1779966642000,-151.0,0.00019178,2]
[423234106,1779966642000,-151.0,0.00019178,2]
[423234107,1779966642000,-151.0,0.00019178,2]
[423234113,1779966642000,-151.0,0.00019178,2]
[423234109,1779966642000,-151.0,0.00019178,2]
[423234111,1779966642000,-151.0,0.00019178,2]
[423234110,1779966642000,-151.0,0.00019178,2]
[423234108,1779966642000,-151.0,0.00019178,2]
[423234112,1779966642000,-151.0,0.00019178,2]
[423234118,1779966642000,-151.0,0.00019178,2]
[423234117,1779966642000,-151.0,0.00019178,2]
[423234115,1779966642000,-151.0,0.00019178,2]
[423234144,1779966642000,-151.0,0.00019178,2]
[423234161,1779966642000,-151.0,0.00019178,2]
[423234150,1779966642000,-151.0,0.00019178,2]
[423234180,1779966642000,-151.0,0.00019178,2]
[423234176,1779966642000,-151.0,0.00019178,2]
[423234181,1779966642000,-151.0,0.00019178,2]
[423234184,1779966642000,-151.0,0.00019178,2]
[423234186,1779966642000,-151.0,0.00019178,2]
[423234185,1779966642000,-151.0,0.00019178,2]
[423234188,1779966642000,-151.0,0.00019178,2]
[423234190,1779966642000,-182.32,0.00019233,2]
[423234200,1779966642000,-928.0,0.00019915,2]
[423234198,1779966642000,-1561.0,0.00019877,2]
[423234197,1779966642000,-477.77,0.00019836,2]
[423234189,1779966642000,-242.507894,0.00019178,2]
[423234183,1779966642000,-151.0,0.00019178,2]
[423234195,1779966642000,-500.0,0.00019753,2]
[423234196,1779966642000,-1230.0,0.00019835,2]
[423234199,1779966642000,-3549.0,0.00019915,2]
[423234191,1779966642000,-180.9,0.00019517,2]
[423234194,1779966642000,-221.05,0.000197,2]
[423234193,1779966642000,-2000.0,0.00019618,2]
[423234202,1779966642000,-525.0,0.00019915,2]
[423234201,1779966642000,-1272.0,0.00019915,2]
[423234203,1779966642000,-477.77,0.0001994,2]
[423234207,1779966642000,-2000.0,0.0002,2]
[423234204,1779966642000,-5284.10140603,0.0002,2]
[423234206,1779966642000,-6607.85400871,0.0002,2]
[423234205,1779966642000,-199.29868437,0.0002,2]
[423234192,1779966642000,-477.77,0.00019617,2]
[423234179,1779966642000,-151.0,0.00019178,2]
[423234143,1779966642000,-151.0,0.00019178,2]
[423234178,1779966642000,-151.0,0.00019178,2]
[423234149,1779966642000,-151.0,0.00019178,2]
[423234146,1779966642000,-151.0,0.00019178,2]
[423234153,1779966642000,-151.0,0.00019178,2]
[423234163,1779966642000,-151.0,0.00019178,2]
[423234155,1779966642000,-151.0,0.00019178,2]
[423234154,1779966642000,-151.0,0.00019178,2]
[423234152,1779966642000,-151.0,0.00019178,2]
[423234182,1779966642000,-151.0,0.00019178,2]
[423234160,1779966642000,-151.0,0.00019178,2]
[423234159,1779966642000,-151.0,0.00019178,2]
[423234157,1779966642000,-151.0,0.00019178,2]
[423234158,1779966642000,-151.0,0.00019178,2]
[423234162,1779966642000,-151.0,0.00019178,2]
[423234156,1779966642000,-151.0,0.00019178,2]
[423234166,1779966642000,-151.0,0.00019178,2]
[423234164,1779966642000,-151.0,0.00019178,2]
[423234177,1779966642000,-151.0,0.00019178,2]
[423234175,1779966642000,-151.0,0.00019178,2]
[423234170,1779966642000,-151.0,0.00019178,2]
[423234171,1779966642000,-151.0,0.00019178,2]
[423234172,1779966642000,-151.0,0.00019178,2]
[423234187,1779966642000,-151.0,0.00019178,2]
[423234165,1779966642000,-151.0,0.00019178,2]
[423234169,1779966642000,-151.0,0.00019178,2]
[423234174,1779966642000,-151.0,0.00019178,2]
[423234168,1779966642000,-151.0,0.00019178,2]
[423234167,1779966642000,-151.0,0.00019178,2]
[423234173,1779966642000,-151.0,0.00019178,2]
[423234251,1779966643000,-150.0,0.00020395,2]
[423234248,1779966643000,-150.0,0.00020395,2]
[423234247,1779966643000,-150.0,0.00020395,2]
[423234241,1779966643000,-1183.436063,0.00020274,2]
[423234243,1779966643000,-477.79,0.00020374,2]
[423234242,1779966643000,-1183.436063,0.00020356,2]
[423234249,1779966643000,-150.0,0.00020395,2]
[423234244,1779966643000,-3028.7,0.00020381,2]
[423234245,1779966643000,-150.0,0.00020395,2]
[423234239,1779966643000,-932.0,0.00020232,2]
[423234246,1779966643000,-150.0,0.00020395,2]
[423234252,1779966643000,-1356.0,0.00020395,2]
[423234272,1779966643000,-1183.436063,0.00020603,2]
[423234254,1779966643000,-618.404731,0.0002052,2]
[423234255,1779966643000,-1183.436063,0.00020521,2]
[423234258,1779966643000,-4107.09,0.00020548,2]
[423234269,1779966643000,-150.0,0.0002058,2]
[423234253,1779966643000,-1183.436063,0.00020438,2]
[423234262,1779966643000,-150.0,0.0002058,2]
[423234265,1779966643000,-150.0,0.0002058,2]
[423234260,1779966643000,-2850.44,0.00020548,2]
[423234267,1779966643000,-150.0,0.0002058,2]
[423234270,1779966643000,-150.0,0.0002058,2]
[423234273,1779966643000,-168.1,0.00020639,2]
[423234275,1779966643000,-1183.436063,0.00020767,2]
[423234240,1779966643000,-6064.0,0.00020232,2]
[423234250,1779966643000,-150.0,0.00020395,2]
[423234238,1779966643000,-1225.0,0.00020205,2]
[423234226,1779966643000,-169.0,0.0002,2]
[423234237,1779966643000,-1183.436063,0.00020192,2]
[423234284,1779966643000,-151.0,0.000208,2]
[423234213,1779966643000,-1953.0,0.0002,2]
[423234212,1779966643000,-2000.0,0.0002,2]
[423234211,1779966643000,-387.0,0.0002,2]
[423234209,1779966643000,-5885.80955307,0.0002,2]
[423234210,1779966643000,-400.0,0.0002,2]
[423234216,1779966643000,-180.0,0.0002,2]
[423234217,1779966643000,-1136.0,0.0002,2]
[423234214,1779966643000,-500.0,0.0002,2]
[423234218,1779966643000,-412.0,0.0002,2]
[423234215,1779966643000,-613.04222186,0.0002,2]
[423234220,1779966643000,-200.0,0.0002,10]
[423234219,1779966643000,-1276.0,0.0002,2]
[423234221,1779966643000,-156.0,0.0002,2]
[423234222,1779966643000,-221.0,0.0002,2]
[423234225,1779966643000,-200.0,0.0002,2]
[423234224,1779966643000,-1017.0,0.0002,2]
[423234223,1779966643000,-5903.0,0.0002,2]
[423234228,1779966643000,-151.72681805,0.0002,20]
[423234227,1779966643000,-8423.0,0.0002,2]
[423234230,1779966643000,-2000.0,0.0002001,2]
[423234231,1779966643000,-2000.0,0.0002002,2]
[423234233,1779966643000,-1908.0,0.00020098,2]
[423234229,1779966643000,-2013.0,0.0002,2]
[423234232,1779966643000,-2881.803606,0.0002003,2]
[423234235,1779966643000,-1183.436063,0.0002011,2]
[423234234,1779966643000,-300.0,0.000201,10]
[423234236,1779966643000,-477.77,0.00020155,2]
[423234274,1779966643000,-1183.436063,0.00020685,2]
[423234303,1779966643000,-2080.17592889,0.000208,2]
[423234280,1779966643000,-151.0,0.000208,2]
[423234321,1779966643000,-275.93152964,0.000208,2]
[423234323,1779966643000,-151.0,0.000208,2]
[423234332,1779966643000,-151.0,0.000208,2]
[423234330,1779966643000,-500.0,0.000208,2]
[423234322,1779966643000,-500.0,0.000208,2]
[423234324,1779966643000,-151.0,0.000208,2]
[423234320,1779966643000,-151.0,0.000208,2]
[423234325,1779966643000,-286.14099624,0.000208,2]
[423234331,1779966643000,-151.0,0.000208,2]
[423234327,1779966643000,-151.0,0.000208,2]
[423234328,1779966643000,-151.0,0.000208,2]
[423234326,1779966643000,-500.0,0.000208,2]
[423234329,1779966643000,-296.7282131,0.000208,2]
[423234278,1779966643000,-200.0,0.000208,2]
[423234336,1779966643000,-151.0,0.000208,2]
[423234344,1779966643000,-6111.0,0.00021,2]
[423234340,1779966643000,-151.0,0.000208,2]
[423234343,1779966643000,-15000.0,0.00021,2]
[423234334,1779966643000,-500.0,0.000208,2]
[423234335,1779966643000,-151.0,0.000208,2]
[423234339,1779966643000,-500.0,0.000208,2]
[423234342,1779966643000,-1183.436063,0.00020932,2]
[423234337,1779966643000,-500.0,0.000208,2]
[423234341,1779966643000,-1183.436063,0.00020849,2]
[423234338,1779966643000,-151.0,0.000208,2]
[423234345,1779966643000,-10000.0,0.00021,2]
[423234346,1779966643000,-387.0,0.00021,2]
[423234318,1779966643000,-500.0,0.000208,2]
[423234315,1779966643000,-151.0,0.000208,2]
[423234333,1779966643000,-277.48760411,0.000208,2]
[423234316,1779966643000,-151.0,0.000208,2]
[423234314,1779966643000,-500.0,0.000208,2]
[423234276,1779966643000,-151.0,0.000208,2]
[423234271,1779966643000,-150.0,0.0002058,2]
[423234282,1779966643000,-151.0,0.000208,2]
[423234286,1779966643000,-151.0,0.000208,2]
[423234288,1779966643000,-151.0,0.000208,2]
[423234290,1779966643000,-151.0,0.000208,2]
[423234301,1779966643000,-151.0,0.000208,2]
[423234302,1779966643000,-230.09519341,0.000208,2]
[423234304,1779966643000,-151.0,0.000208,2]
[423234305,1779966643000,-151.0,0.000208,2]
[423234306,1779966643000,-238.60871557,0.000208,2]
[423234296,1779966643000,-151.0,0.000208,2]
[423234300,1779966643000,-151.0,0.000208,2]
[423234298,1779966643000,-221.88543241,0.000208,2]
[423234312,1779966643000,-151.0,0.000208,2]
[423234292,1779966643000,-151.0,0.000208,2]
[423234311,1779966643000,-500.0,0.000208,2]
[423234317,1779966643000,-266.08633524,0.000208,2]
[423234313,1779966643000,-256.59241585,0.000208,2]
[423234307,1779966643000,-151.0,0.000208,2]
[423234319,1779966643000,-151.0,0.000208,2]
[423234310,1779966643000,-247.43723804,0.000208,2]
[423234308,1779966643000,-500.0,0.000208,2]
[423234294,1779966643000,-151.0,0.000208,2]
[423234299,1779966643000,-500.0,0.000208,2]
[423234309,1779966643000,-151.0,0.000208,2]
[423234365,1779966644000,-221.05,0.000217,2]
[423234369,1779966644000,-194983.35991131,0.00022,4]
[423234366,1779966644000,-200.0,0.00021896,2]
[423234361,1779966644000,-195.06,0.00021475,2]
[423234367,1779966644000,-2236.95670847,0.00021896,2]
[423234371,1779966644000,-160.0,0.00022,2]
[423234384,1779966644000,-391.53212917,0.00022,2]
[423234372,1779966644000,-300.0,0.00022,2]
[423234374,1779966644000,-387.0,0.00022,2]
[423234385,1779966644000,-625.46787083,0.00022,2]
[423234373,1779966644000,-450.0,0.00022,2]
[423234364,1779966644000,-1789.0,0.00021657,2]
[423234375,1779966644000,-180.0,0.00022,2]
[423234370,1779966644000,-15716.36437512,0.00022,4]
[423234368,1779966644000,-5000.0,0.00021918,2]
[423234349,1779966644000,-412.0,0.00021,2]
[423234362,1779966644000,-648.5205625,0.00021497,2]
[423234378,1779966644000,-552.13285207,0.00022,2]
[423234347,1779966644000,-180.0,0.00021,2]
[423234348,1779966644000,-1136.0,0.00021,2]
[423234358,1779966644000,-200.0,0.00021348,2]
[423234350,1779966644000,-1276.0,0.00021,2]
[423234354,1779966644000,-169.0,0.00021,2]
[423234363,1779966644000,-521.8537638,0.00021497,2]
[423234352,1779966644000,-221.0,0.00021,2]
[423234356,1779966644000,-1183.436063,0.00021014,2]
[423234351,1779966644000,-156.0,0.00021,2]
[423234355,1779966644000,-2013.0,0.00021,2]
[423234357,1779966644000,-500.0,0.00021324,2]
[423234360,1779966644000,-6474.79,0.0002137,2]
[423234359,1779966644000,-2157.14243826,0.00021348,2]
[423234353,1779966644000,-1017.0,0.00021,2]
[423234381,1779966644000,-1276.0,0.00022,2]
[423234401,1779966644000,-305.82799825,0.00022052,2]
[423234377,1779966644000,-583.86714793,0.00022,2]
[423234379,1779966644000,-62.59201551,0.00022,2]
[423234415,1779966644000,-152.0,0.00022052,2]
[423234413,1779966644000,-152.0,0.00022052,2]
[423234414,1779966644000,-151.0,0.00022052,2]
[423234411,1779966644000,-1428.38747117,0.00022052,2]
[423234412,1779966644000,-209.40437684,0.00022052,2]
[423234410,1779966644000,-200.0,0.00022052,2]
[423234407,1779966644000,-200.0,0.00021918,2]
[423234408,1779966644000,-9442.91522089,0.00022052,2]
[423234405,1779966644000,-1646.41197536,0.00021785,2]
[423234406,1779966644000,-3516.22802464,0.00021785,2]
[423234403,1779966644000,-2003.89330541,0.0002,2]
[423234404,1779966644000,-3158.74669459,0.0002,2]
[423234402,1779966644000,-109.25264458,0.00022052,2]
[423234399,1779966644000,-200.0,0.00022052,2]
[423234409,1779966644000,-693.39197629,0.00022052,2]
[423234416,1779966644000,-152.0,0.00022052,2]
[423234400,1779966644000,-415.29965709,0.00022052,2]
[423234383,1779966644000,-221.0,0.00022,2]
[423234382,1779966644000,-156.0,0.00022,2]
[423234380,1779966644000,-349.40798449,0.00022,2]
[423234388,1779966644000,-151.0,0.00022052,2]
[423234390,1779966644000,-39.39854372,0.00022052,2]
[423234392,1779966644000,-169.01800728,0.0002058,2]
[423234386,1779966644000,-169.0,0.00022,2]
[423234387,1779966644000,-2013.0,0.00022,2]
[423234396,1779966644000,-578.20924308,0.00022052,2]
[423234394,1779966644000,-174.61919141,0.00022052,2]
[423234397,1779966644000,-743.50770149,0.00022052,2]
[423234395,1779966644000,-209.40437684,0.00022052,2]
[423234398,1779966644000,-269.34833786,0.00022052,2]
[423234393,1779966644000,-240.50602718,0.00022052,2]
[423234438,1779966645000,-862.28603014,0.00022382,2]
[423234443,1779966645000,-200.0,0.00022444,2]
[423234442,1779966645000,-151.0,0.00022437,2]
[423234445,1779966645000,-1096.42,0.00022466,2]
[423234446,1779966645000,-1453.51,0.00022466,2]
[423234444,1779966645000,-2319.72410669,0.00022444,2]
[423234447,1779966645000,-645.81,0.00022466,2]
[423234448,1779966645000,-2175.25,0.00022466,2]
[423234449,1779966645000,-927.27566594,0.00022492,2]
[423234453,1779966645000,-151.0,0.00022547,2]
[423234451,1779966645000,-200.0,0.00022511,2]
[423234454,1779966645000,-181.08010149,0.000226,2]
[423234456,1779966645000,-217.15233878,0.000226,2]
[423234458,1779966645000,-200.0,0.000226,2]
[423234455,1779966645000,-290.26104002,0.000226,2]
[423234457,1779966645000,-771.01748644,0.000226,2]
[423234459,1779966645000,-9905.59807649,0.000226,2]
[423234460,1779966645000,-200.0,0.000226,2]
[423234439,1779966645000,-151.0,0.00022382,2]
[423234450,1779966645000,-151.0,0.00022492,2]
[423234440,1779966645000,-1888.0,0.00022388,2]
[423234420,1779966645000,-152.0,0.00022052,2]
[423234437,1779966645000,-3028.7,0.00022353,2]
[423234423,1779966645000,-180.86370417,0.00022052,2]
[423234422,1779966645000,-152.0,0.00022052,2]
[423234419,1779966645000,-152.0,0.00022052,2]
[423234418,1779966645000,-152.0,0.00022052,2]
[423234417,1779966645000,-152.0,0.00022052,2]
[423234421,1779966645000,-152.0,0.00022052,2]
[423234465,1779966645000,-1434.86,0.00022691,2]
[423234424,1779966645000,-152.0,0.00022052,2]
[423234429,1779966645000,-151.0,0.00022162,2]
[423234441,1779966645000,-894.19061325,0.00022437,2]
[423234425,1779966645000,-152.0,0.00022052,2]
[423234427,1779966645000,-151.0,0.00022107,2]
[423234428,1779966645000,-745.65223615,0.00022162,2]
[423234433,1779966645000,-151.0,0.00022272,2]
[423234431,1779966645000,-151.0,0.00022217,2]
[423234434,1779966645000,-2272.0,0.0002231,5]
[423234430,1779966645000,-773.24136889,0.00022217,2]
[423234432,1779966645000,-801.85129954,0.00022272,2]
[423234436,1779966645000,-151.0,0.00022327,2]
[423234435,1779966645000,-831.51979762,0.00022327,2]
[423234426,1779966645000,-719.04747942,0.00022107,2]
[423234464,1779966645000,-151.0,0.00022602,2]
[423234452,1779966645000,-961.58486558,0.00022547,2]
[423234463,1779966645000,-997.16350561,0.00022602,2]
[423234489,1779966645000,-1017.0,0.00023,2]
[423234490,1779966645000,-169.0,0.00023,2]
[423234491,1779966645000,-2013.0,0.00023,2]
[423234492,1779966645000,-1053.0,0.00023113,5]
[423234493,1779966645000,-2442.0,0.00023113,5]
[423234494,1779966645000,-187.78006524,0.00023148,2]
[423234496,1779966645000,-225.18697532,0.00023148,2]
[423234498,1779966645000,-200.0,0.00023148,2]
[423234502,1779966645000,-1536.04360648,0.00023148,2]
[423234488,1779966645000,-221.0,0.00023,2]
[423234501,1779966645000,-225.18697532,0.00023148,2]
[423234495,1779966645000,-301.0006985,0.00023148,2]
[423234499,1779966645000,-10272.10520532,0.00023148,2]
[423234504,1779966645000,-150.0,0.00023166,7]
[423234500,1779966645000,-200.0,0.00023148,2]
[423234508,1779966645000,-932.0,0.00023232,2]
[423234510,1779966645000,-6064.0,0.00023232,2]
[423234513,1779966645000,-330.0,0.00023308,4]
[423234512,1779966645000,-200.0,0.00023304,2]
[423234461,1779966645000,-1481.2378076,0.000226,2]
[423234497,1779966645000,-799.54513344,0.00023148,2]
[423234485,1779966645000,-412.0,0.00023,2]
[423234506,1779966645000,-1225.0,0.00023205,2]
[423234487,1779966645000,-156.0,0.00023,2]
[423234462,1779966645000,-217.15233878,0.000226,2]
[423234486,1779966645000,-1276.0,0.00023,2]
[423234466,1779966645000,-532.28,0.00022691,2]
[423234467,1779966645000,-7438.69,0.00022691,2]
[423234468,1779966645000,-1066.46,0.00022718,2]
[423234470,1779966645000,-1066.46,0.0002272,2]
[423234473,1779966645000,-1066.48,0.00022722,2]
[423234469,1779966645000,-1066.46,0.00022718,2]
[423234474,1779966645000,-1066.46,0.00022722,2]
[423234472,1779966645000,-1066.46,0.0002272,2]
[423234471,1779966645000,-1066.46,0.0002272,2]
[423234475,1779966645000,-1066.46,0.00022722,2]
[423234481,1779966645000,-2405.55389863,0.00022992,2]
[423234477,1779966645000,-928.0,0.00022915,2]
[423234476,1779966645000,-3549.0,0.00022915,2]
[423234480,1779966645000,-200.0,0.00022992,2]
[423234479,1779966645000,-525.0,0.00022915,2]
[423234482,1779966645000,-387.0,0.00023,2]
[423234478,1779966645000,-1272.0,0.00022915,2]
[423234483,1779966645000,-180.0,0.00023,2]
[423234484,1779966645000,-1136.0,0.00023,2]
[423234559,1779966646000,-11046.30350254,0.00024244,2]
[423234548,1779966646000,-2013.0,0.00024,2]
[423234549,1779966646000,-450.0,0.0002401,2]
[423234567,1779966646000,-200.0,0.00024636,2]
[423234547,1779966646000,-169.0,0.00024,2]
[423234546,1779966646000,-1017.0,0.00024,2]
[423234542,1779966646000,-309.0,0.00024,2]
[423234537,1779966646000,-180.0,0.00024,2]
[423234550,1779966646000,-437.4,0.0002401,2]
[423234545,1779966646000,-221.0,0.00024,2]
[423234558,1779966646000,-859.8060506,0.00024244,2]
[423234561,1779966646000,-200.0,0.00024244,2]
[423234552,1779966646000,-2586.85809042,0.00024088,2]
[423234555,1779966646000,-166.77,0.00024236,2]
[423234551,1779966646000,-200.0,0.00024088,2]
[423234554,1779966646000,-500.0,0.00024136,2]
[423234557,1779966646000,-201.93286098,0.00024244,2]
[423234556,1779966646000,-226.57528986,0.00024244,2]
[423234560,1779966646000,-200.0,0.00024244,2]
[423234562,1779966646000,-242.15909246,0.00024244,2]
[423234563,1779966646000,-1651.81367706,0.00024244,2]
[423234568,1779966646000,-2682.57183977,0.00024636,2]
[423234541,1779966646000,-1276.0,0.00024,2]
[423234553,1779966646000,-200.0,0.00024097,2]
[423234543,1779966646000,-165.15482607,0.00024,2]
[423234515,1779966646000,-150.0,0.00023395,2]
[423234538,1779966646000,-1500.0,0.00024,2]
[423234517,1779966646000,-150.0,0.00023395,2]
[423234518,1779966646000,-1356.0,0.00023395,2]
[423234519,1779966646000,-156.587,0.00023421,2]
[423234514,1779966646000,-150.0,0.00023395,2]
[423234516,1779966646000,-150.0,0.00023395,2]
[423234522,1779966646000,-2494.55939288,0.0002354,2]
[423234520,1779966646000,-150.0,0.000235,30]
[423234526,1779966646000,-262.59836162,0.00023696,2]
[423234525,1779966646000,-312.13772435,0.00023696,2]
[423234523,1779966646000,-5162.64,0.0002357,2]
[423234521,1779966646000,-200.0,0.0002354,2]
[423234544,1779966646000,-1000.0,0.00024,2]
[423234524,1779966646000,-194.72792766,0.00023696,2]
[423234530,1779966646000,-200.0,0.00023696,2]
[423234531,1779966646000,-233.5188934,0.00023696,2]
[423234529,1779966646000,-10652.17309792,0.00023696,2]
[423234535,1779966646000,-387.0,0.00024,2]
[423234528,1779966646000,-200.0,0.00023696,2]
[423234532,1779966646000,-1592.87721992,0.00023696,2]
[423234534,1779966646000,-500.0,0.00024,2]
[423234533,1779966646000,-1711.0,0.00023719,2]
[423234536,1779966646000,-221.05,0.00024,7]
[423234539,1779966646000,-1136.0,0.00024,2]
[423234540,1779966646000,-412.0,0.00024,2]
[423234527,1779966646000,-829.12830338,0.00023696,2]
[423234565,1779966646000,-3028.7,0.00024324,2]
[423234585,1779966646000,-251.11897888,0.00024792,2]
[423234566,1779966646000,-168.1,0.00024566,2]
[423234606,1779966646000,-1285.41842051,0.00025,2]
[423234604,1779966646000,-1143.37617276,0.00025,2]
[423234596,1779966646000,-3088.4174624,0.00025,2]
[423234602,1779966646000,-391.11095282,0.00025,2]
[423234600,1779966646000,-169.8000364,0.00025,2]
[423234603,1779966646000,-199.10654966,0.00025,2]
[423234599,1779966646000,-2233.05957326,0.00025,2]
[423234601,1779966646000,-90151.3646072,0.00025,2]
[423234605,1779966646000,-429.92725443,0.00025,2]
[423234608,1779966646000,-1023.29192605,0.00025,2]
[423234609,1779966646000,-180.87724896,0.00025,2]
[423234597,1779966646000,-21796.10948775,0.00025,2]
[423234618,1779966646000,-488.97,0.00025,2]
[423234611,1779966646000,-488.97,0.00025,2]
[423234613,1779966646000,-488.97,0.00025,2]
[423234617,1779966646000,-488.97,0.00025,2]
[423234616,1779966646000,-488.97,0.00025,2]
[423234614,1779966646000,-488.97,0.00025,2]
[423234615,1779966646000,-488.97,0.00025,2]